bitfinex/quotes_ETHUSD_20250924
["timestamp","ask_amount","ask_price","bid_price","bid_amount"]
[1758733412262,6.18589079,4177.3,4177.2,0.002]
[1758733412410,11.46235907,4177.3,4177.2,0.002]
[1758733412610,7.46435907,4177.3,4177.2,0.002]
[1758733412917,11.90396999,4177.3,4177.2,0.6827]
[1758733413640,9.90996999,4177.3,4177.2,0.6827]
[1758733413874,11.90496999,4177.3,4177.2,0.6827]
[1758733415481,5.90996999,4177.3,4177.2,0.6827]
[1758733415689,11.90496999,4177.3,4177.2,0.6827]
[1758733421748,11.90296999,4177.3,4177.2,0.6827]
[1758733422648,11.90296999,4177.3,4177.2,0.002]
[1758733422850,11.90296999,4177.3,4177.2,0.6837]
[1758733423379,11.90296999,4177.3,4177.2,0.002]
[1758733423549,13.33264881,4177.3,4177.2,0.002]
[1758733424850,14.00174881,4177.3,4177.2,0.002]
[1758733425502,14.79374881,4177.3,4177.2,0.002]
[1758733425957,14.35354881,4177.3,4177.2,0.002]
[1758733426158,14.12464881,4177.3,4177.2,0.002]
[1758733427379,14.79374881,4177.3,4177.2,0.002]
[1758733428084,14.35354881,4177.3,4177.2,0.002]
[1758733428288,14.12464881,4177.3,4177.2,0.002]
[1758733430178,7.33964881,4177.3,4177.2,0.6837]
[1758733430376,11.90296999,4177.3,4177.2,0.6837]
[1758733433096,5.90996999,4177.3,4177.2,0.002]
[1758733433266,11.90296999,4177.3,4177.2,0.6837]
[1758733433597,5.5110792,4177.3,4177.2,0.6837]
[1758733433761,11.90196999,4177.3,4177.2,0.6837]
[1758733434892,11.90196999,4177.3,4177.2,0.4553]
[1758733435194,11.90196999,4177.3,4177.2,0.002]
[1758733435399,13.33154634,4177.3,4177.2,0.002]
[1758733436081,11.90196999,4177.3,4177.2,0.002]
[1758733436285,11.90196999,4177.3,4177.2,0.2304]
[1758733436687,11.90196999,4177.3,4177.2,0.002]
[1758733436889,11.90196999,4177.3,4177.2,14.502]
[1758733437594,11.90196999,4177.3,4177.2,15.1837]
[1758733438600,0.5160792,4177.3,4177.2,15.1837]
[1758733438801,4.373,4177.3,4177.2,15.1837]
[1758733439702,0.5160792,4177.4,4177.2,15.1837]
[1758733439908,5.992,4177.3,4177.2,14.502]
[1758733440200,6.5080792,4177.3,4177.2,14.502]
[1758733440401,6.5080792,4177.3,4177.2,14.7365]
[1758733440607,6.5080792,4177.3,4177.2,15.1685]
[1758733442103,6.5080792,4177.3,4177.2,14.502]
[1758733442297,6.5080792,4177.3,4177.2,15.1685]
[1758733442694,0.5160792,4177.3,4177.2,15.1685]
[1758733442911,5.991,4177.3,4177.2,15.1685]
[1758733443087,0.5160792,4177.3,4177.2,15.1685]
[1758733443415,5.994,4177.3,4177.2,15.1685]
[1758733443706,6.5100792,4177.3,4177.2,15.1685]
[1758733444211,6.5110792,4177.3,4177.2,15.1685]
[1758733445011,0.001,4177.3,4177.2,15.1685]
[1758733445211,0.001,4177.3,4177.2,17.56244809]
[1758733445511,1.926,4177.3,4177.2,17.56244809]
[1758733446204,1.926,4177.3,4177.2,15.1685]
[1758733446804,1.926,4177.3,4177.2,17.56244809]
[1758733448615,3.999,4177.3,4177.2,17.56244809]
[1758733448777,0.001,4177.3,4177.2,17.56244809]
[1758733448981,3.998,4177.3,4177.2,17.56244809]
[1758733451315,0.001,4177.3,4177.2,17.56244809]
[1758733451904,0.001,4177.3,4177.2,27.03383419]
[1758733452304,0.001,4177.3,4177.2,17.56244809]
[1758733458155,0.001,4177.3,4177.2,25.35144809]
[1758733458295,0.001,4177.3,4177.2,34.82283419]
[1758733460153,1e-08,4177.9,4177.8,3.18560428]
[1758733460353,1e-08,4177.9,4177.8,19.65399038]
[1758733460511,1e-08,4177.9,4177.8,20.35119038]
[1758733460848,1e-08,4177.9,4177.8,34.85119038]
[1758733462749,1e-08,4177.9,4177.8,33.55263421]
[1758733463753,0.001,4178.1,4178.0,3.1854897]
[1758733463938,0.001,4178.8,4178.6,11.96482993]
[1758733464150,0.001,4178.8,4178.6,18.35397595]
[1758733464452,0.001,4178.8,4178.6,33.55117595]
[1758733465632,0.001,4178.8,4178.6,32.85397595]
[1758733466968,0.001,4178.8,4178.6,32.06197595]
[1758733469192,0.001,4178.8,4178.6,28.06597595]
[1758733470182,0.001,4178.8,4178.6,16.89314602]
[1758733470488,0.6705,4178.7,4178.6,16.89314602]
[1758733470991,0.6705,4178.7,4178.6,14.5]
[1758733471285,0.6705,4178.7,4178.6,16.89314602]
[1758733471674,0.6705,4178.7,4178.6,14.5]
[1758733472262,0.6705,4178.7,4178.6,16.89314602]
[1758733472451,0.001,4178.7,4178.6,16.89314602]
[1758733472979,0.001,4178.7,4178.6,14.5]
[1758733473192,0.6705,4178.7,4178.6,14.5]
[1758733473356,0.6705,4178.7,4178.6,16.89314602]
[1758733474488,0.6705,4178.7,4178.6,14.5]
[1758733475460,0.6705,4178.7,4178.6,16.89314602]
[1758733475862,0.001,4178.7,4178.6,16.89314602]
[1758733476192,0.2299,4178.7,4178.6,14.5]
[1758733476397,0.6705,4178.7,4178.6,14.5]
[1758733476894,3.96903718,4178.7,4178.6,14.5]
[1758733478397,1.57594843,4178.7,4178.6,14.5]
[1758733478990,0.001,4178.7,4178.6,14.5]
[1758733479191,6.6585,4178.7,4178.6,14.5]
[1758733479592,9.05158875,4178.7,4178.6,14.5]
[1758733479910,6.6585,4178.7,4178.6,14.5]
[1758733481113,9.05158875,4178.7,4178.6,14.5]
[1758733481280,10.19623973,4178.7,4178.6,14.502]
[1758733483416,7.36255098,4178.7,4178.6,14.502]
[1758733483718,0.001,4178.7,4178.6,14.502]
[1758733483924,5.989,4178.7,4178.6,14.502]
[1758733484215,0.001,4178.7,4178.6,14.502]
[1758733484398,5.989,4178.7,4178.6,14.502]
[1758733485502,0.001,4178.7,4178.6,14.502]
[1758733485698,5.988,4178.7,4178.6,14.502]
[1758733486991,8.60998875,4178.7,4178.6,14.502]
[1758733487192,9.75402609,4178.7,4178.6,14.502]
[1758733487422,10.18942609,4178.7,4178.6,14.502]
[1758733487918,7.79633734,4178.7,4178.6,14.502]
[1758733488119,10.18942609,4178.7,4178.6,14.502]
[1758733489029,7.36093734,4178.7,4178.6,14.502]
[1758733489327,5.988,4178.7,4178.6,14.502]
[1758733492037,0.001,4178.7,4178.6,17.12724602]
[1758733492241,3.995,4178.7,4178.6,15.1973]
[1758733492711,3.995,4178.7,4178.6,14.502]
[1758733493106,0.001,4178.7,4178.6,17.59044602]
[1758733493308,0.725,4178.7,4178.6,17.59044602]
[1758733493521,0.001,4178.7,4178.6,17.59044602]
[1758733493712,3.996,4178.7,4178.6,17.59044602]
[1758733494146,0.001,4178.7,4178.6,21.58544602]
[1758733496748,0.001,4178.7,4178.6,17.59044602]
[1758733497046,0.001,4178.7,4178.6,21.38244602]
[1758733497848,0.001,4178.7,4178.6,21.47836917]
[1758733498812,0.001,4178.7,4178.6,28.8591991]
[1758733500249,0.001,4178.7,4178.6,28.76327595]
[1758733501466,0.001,4178.7,4178.6,14.502]
[1758733501761,0.6695,4178.7,4178.6,14.502]
[1758733502073,3.52933875,4178.7,4178.6,14.502]
[1758733502944,1.13625,4178.7,4178.6,14.502]
[1758733503345,0.001,4178.7,4178.6,14.502]
[1758733503567,2.39408875,4178.7,4178.6,14.502]
[1758733503726,3.06258875,4178.7,4178.6,14.502]
[1758733505445,3.06258875,4178.7,4178.6,0.002]
[1758733508456,3.18514602,4178.6,4178.1,0.002]
[1758733508783,3.18514602,4178.6,4177.7,1e-08]
[1758733508784,6.18560428,4177.8,4177.7,1e-08]
[1758733508950,18.92622437,4177.8,4177.7,1e-08]
[1758733509277,19.59472437,4177.8,4177.7,1e-08]
[1758733509681,19.6907357,4177.8,4177.7,1e-08]
[1758733509887,9.67416185,4177.8,4177.7,1e-08]
[1758733510047,18.8997357,4177.8,4177.7,1e-08]
[1758733512789,6.6737357,4177.8,4177.7,1e-08]
[1758733512992,12.6697357,4177.8,4177.7,1e-08]
[1758733513859,13.04512744,4177.8,4177.7,1e-08]
[1758733515572,13.04281066,4177.8,4177.7,1e-08]
[1758733515777,15.2096443,4177.8,4177.7,1e-08]
[1758733517470,9.2136443,4177.8,4177.7,1e-08]
[1758733517699,13.04181066,4177.8,4177.7,1e-08]
[1758733519204,12.66641892,4177.8,4177.7,1e-08]
[1758733520218,13.45841892,4177.8,4177.7,1e-08]
[1758733521506,14.89741892,4177.8,4177.7,1e-08]
[1758733522128,6.00291892,4177.8,4177.7,1e-08]
[1758733522284,7.48361561,4177.8,4177.7,0.71720001]
[1758733522484,9.37631842,4177.8,4177.7,0.71720001]
[1758733522989,12.37631842,4177.8,4177.7,1e-08]
[1758733527245,12.37431842,4177.8,4177.7,1e-08]
[1758733528032,6.38131842,4177.8,4177.7,1e-08]
[1758733528212,11.38660428,4177.8,4177.7,0.71720001]
[1758733530401,0.71992772,4178.1,4177.7,0.71720001]
[1758733530647,0.001,4178.7,4177.8,0.7172]
[1758733530648,5.992,4178.0,4177.8,0.7172]
[1758733530814,5.992,4178.0,4177.7,0.02393662]
[1758733531018,5.992,4178.0,4177.9,0.7172]
[1758733531219,8.3854897,4178.0,4177.9,0.7172]
[1758733533046,5.992,4178.0,4177.9,0.7172]
[1758733533350,2.39344549,4178.1,4177.9,0.7172]
[1758733533718,8.38450152,4178.0,4177.7,1e-08]
[1758733533919,2.3934728,4178.1,4177.8,0.7172]
[1758733534133,8.38452661,4178.0,4177.9,0.7172]
[1758733534326,2.39352661,4178.0,4177.9,0.7172]
[1758733534661,2.3934897,4178.0,4177.9,0.7172]
[1758733534811,8.3844897,4178.0,4177.9,0.7172]
[1758733535966,2.39360428,4177.8,4177.7,1e-08]
[1758733536255,6.39060428,4177.8,4177.7,0.24440001]
[1758733536744,6.39060428,4177.8,4177.7,0.71720001]
[1758733537056,6.39060428,4177.8,4177.7,1e-08]
[1758733538561,6.90654384,4177.8,4177.7,1e-08]
[1758733539646,7.88551903,4177.8,4177.7,1e-08]
[1758733541076,6.90654384,4177.8,4177.7,1e-08]
[1758733541366,6.90654384,4177.8,4177.7,0.71720001]
[1758733542079,6.90654384,4177.8,4177.7,0.24440001]
[1758733542286,6.90654384,4177.8,4177.7,1e-08]
[1758733542869,7.56464384,4177.8,4177.7,1e-08]
[1758733543187,8.75985719,4177.8,4177.7,1e-08]
[1758733543989,4.10475719,4177.8,4177.7,1e-08]
[1758733544155,8.38260428,4177.8,4177.7,0.70180001]
[1758733544352,8.89854384,4177.8,4177.7,1e-08]
[1758733545181,9.55664384,4177.8,4177.7,1e-08]
[1758733545567,3.13844384,4177.8,4177.7,1e-08]
[1758733545884,9.63243257,4177.8,4177.7,1e-08]
[1758733546054,10.14837213,4177.8,4177.7,1e-08]
[1758733546665,3.50027213,4177.8,4177.7,1e-08]
[1758733546981,8.38360428,4177.8,4177.7,1e-08]
[1758733547153,8.89954384,4177.8,4177.7,1e-08]
[1758733548758,9.12844384,4177.8,4177.7,1e-08]
[1758733548938,9.55764384,4177.8,4177.7,1e-08]
[1758733549946,9.12844384,4177.8,4177.7,1e-08]
[1758733550154,10.13219213,4177.8,4177.7,1e-08]
[1758733551067,10.13319213,4177.8,4177.7,1e-08]
[1758733552468,10.36209213,4177.8,4177.7,1e-08]
[1758733553880,13.79129213,4177.8,4177.7,1e-08]
[1758733554293,14.58329213,4177.8,4177.7,1e-08]
[1758733554491,5.39366158,4177.7,4177.6,0.002]
[1758733554662,7.85624588,4177.7,4177.6,0.002]
[1758733554987,8.51434588,4177.7,4177.6,0.002]
[1758733557287,8.88975315,4177.7,4177.6,0.002]
[1758733560179,9.68075315,4177.7,4177.6,0.002]
[1758733560379,9.30534588,4177.7,4177.6,0.002]
[1758733561504,10.74434588,4177.7,4177.6,0.002]
[1758733561668,9.30534588,4177.7,4177.6,0.002]
[1758733562084,8.64824588,4177.7,4177.6,0.002]
[1758733563470,14.75871806,4177.7,4177.6,0.002]
[1758733563770,15.134124,4177.7,4177.6,0.002]
[1758733563982,15.791224,4177.7,4177.6,0.002]
[1758733564306,15.363024,4177.7,4177.6,0.002]
[1758733564504,15.791224,4177.7,4177.6,0.002]
[1758733564684,15.41581806,4177.7,4177.6,0.002]
[1758733565675,14.98761806,4177.7,4177.6,0.002]
[1758733566000,14.75871806,4177.7,4177.6,0.002]
[1758733567015,15.41581806,4177.7,4177.6,0.002]
[1758733567981,15.66977179,4177.7,4177.6,0.002]
[1758733568181,0.792,4177.4,4177.1,0.022]
[1758733568384,6.18594809,4177.2,4177.1,0.022]
[1758733568701,10.69688765,4177.2,4177.1,0.022]
[1758733569413,10.69688765,4177.2,4177.1,1e-08]
[1758733569913,12.69088765,4177.2,4177.1,0.69190001]
[1758733570123,14.83246748,4177.2,4177.1,0.69190001]
[1758733571891,14.83246748,4177.2,4177.1,0.22760001]
[1758733572096,14.83246748,4177.2,4177.1,0.68150001]
[1758733572293,14.83246748,4177.2,4177.1,0.22760001]
[1758733572493,14.83246748,4177.2,4177.1,1e-08]
[1758733573375,15.50376748,4177.2,4177.1,1e-08]
[1758733573576,2.39417736,4176.8,4176.7,1e-08]
[1758733573911,2.39440666,4176.4,4176.3,0.002]
[1758733574078,2.91034622,4176.4,4176.3,0.002]
[1758733574277,1.995,4176.4,4176.3,0.4559]
[1758733574491,8.38540666,4176.4,4176.3,0.4559]
[1758733574701,8.90134622,4176.4,4176.3,0.6872]
[1758733577619,8.90134622,4176.4,4176.3,15.1872]
[1758733578018,2.91034622,4176.4,4176.3,15.1872]
[1758733578230,2.39440666,4176.4,4176.3,15.1872]
[1758733578390,8.38640666,4176.4,4176.3,15.1872]
[1758733578719,8.90234622,4176.4,4176.3,15.1872]
[1758733579916,6.90734622,4176.4,4176.3,15.1872]
[1758733580152,2.91034622,4176.4,4176.3,15.1872]
[1758733580349,8.38540666,4176.4,4176.3,15.1872]
[1758733580655,6.50693956,4176.4,4176.3,0.6872]
[1758733581123,6.50693956,4176.4,4176.3,15.1872]
[1758733581318,0.51593956,4176.4,4176.3,15.1872]
[1758733581527,5.302,4176.4,4176.3,15.1872]
[1758733581837,3.996,4176.4,4176.3,15.1872]
[1758733582028,5.991,4176.4,4176.3,15.1872]
[1758733582231,6.50693956,4176.4,4176.3,15.1872]
[1758733582895,8.90134622,4176.4,4176.3,15.1872]
[1758733583631,6.50693956,4176.4,4176.3,15.1872]
[1758733584027,6.50693956,4176.4,4176.3,0.6872]
[1758733584633,6.50693956,4176.4,4176.3,15.1872]
[1758733585340,6.50693956,4176.4,4176.3,14.502]
[1758733585341,8.90134622,4176.4,4176.3,14.502]
[1758733585722,8.90134622,4176.4,4176.3,15.1872]
[1758733585924,8.90134622,4176.4,4176.3,14.502]
[1758733586155,10.03101428,4176.4,4176.3,14.502]
[1758733586341,10.03101428,4176.4,4176.3,0.002]
[1758733588458,6.90634622,4176.4,4176.3,0.2333]
[1758733588671,8.90134622,4176.4,4176.3,0.6872]
[1758733589029,8.90134622,4176.4,4176.3,0.2333]
[1758733589641,8.90134622,4176.4,4176.3,0.6872]
[1758733589841,0.51593956,4176.4,4176.3,0.6872]
[1758733590405,5.993,4176.4,4176.3,0.6872]
[1758733590668,6.50893956,4176.4,4176.3,0.71114463]
[1758733591425,6.50893956,4176.4,4176.3,0.99977083]
[1758733592170,0.51593956,4176.4,4176.3,0.99977083]
[1758733592358,5.993,4176.4,4176.3,0.99977083]
[1758733592557,6.50893956,4176.4,4176.3,0.6872]
[1758733592747,6.50893956,4176.4,4176.3,15.1872]
[1758733596677,8.90334622,4176.4,4176.3,14.502]
[1758733597061,6.50893956,4176.4,4176.3,14.502]
[1758733598115,8.90334622,4176.4,4176.3,14.502]
[1758733598821,6.50893956,4176.4,4176.3,14.502]
[1758733599998,8.90334622,4176.4,4176.3,14.502]
[1758733600198,6.50893956,4176.4,4176.3,14.502]
[1758733600526,8.90334622,4176.4,4176.3,14.502]
[1758733600818,8.90334622,4176.4,4176.3,0.002]
[1758733601621,6.50893956,4176.4,4176.3,0.002]
[1758733602123,8.90334622,4176.4,4176.3,0.002]
[1758733603420,6.50893956,4176.4,4176.3,0.002]
[1758733603716,6.50893956,4176.4,4176.3,0.6732]
[1758733604622,6.50893956,4176.4,4176.3,15.1732]
[1758733607234,8.90334622,4176.4,4176.3,14.502]
[1758733607748,9.60484622,4176.4,4176.3,14.502]
[1758733607948,10.73471007,4176.4,4176.3,0.002]
[1758733611257,10.03321007,4176.4,4176.3,0.002]
[1758733612949,13.73471007,4176.4,4176.3,0.002]
[1758733613173,14.52671007,4176.4,4176.3,0.002]
[1758733615465,15.96571007,4176.4,4176.3,0.002]
[1758733616879,3.18652133,4176.2,4176.1,1e-08]
[1758733617085,12.66506016,4176.2,4176.1,1e-08]
[1758733617240,12.66506016,4176.2,4175.4,1e-08]
[1758733617241,7.62592276,4175.5,4175.4,1e-08]
[1758733617439,20.36686232,4175.5,4175.4,1e-08]
[1758733617638,21.06836232,4175.5,4175.4,1e-08]
[1758733617984,24.51082703,4175.5,4175.4,1e-08]
[1758733619540,11.58432703,4175.5,4175.4,1e-08]
[1758733619776,21.46500605,4175.5,4175.4,1e-08]
[1758733620836,3.631371,4175.5,4175.4,1e-08]
[1758733621042,8.38492276,4175.5,4175.4,0.66440001]
[1758733621343,8.90086232,4175.5,4175.4,1e-08]
[1758733621656,4.04043331,4175.5,4175.4,1e-08]
[1758733621850,11.38592276,4175.5,4175.4,1e-08]
[1758733622069,11.90186232,4175.5,4175.4,1e-08]
[1758733625251,12.27745924,4175.5,4175.4,1e-08]
[1758733625974,12.50575924,4175.5,4175.4,1e-08]
[1758733626485,12.27745924,4175.5,4175.4,1e-08]
[1758733626793,14.40082529,4175.5,4175.4,1e-08]
[1758733626971,8.40982529,4175.5,4175.4,0.23530001]
[1758733627144,12.27745924,4175.5,4175.4,0.23530001]
[1758733627483,12.27745924,4175.5,4175.4,0.66440001]
[1758733629055,12.27745924,4175.5,4175.4,1e-08]
[1758733629862,6.28645924,4175.5,4175.4,1e-08]
[1758733630167,12.27645924,4175.5,4175.4,1e-08]
[1758733630373,14.39281992,4175.5,4175.4,1e-08]
[1758733635387,14.39281992,4175.5,4175.4,0.23980001]
[1758733635892,14.39281992,4175.5,4175.4,1e-08]
[1758733636413,14.39281992,4175.5,4175.4,0.67170001]
[1758733636414,0.89153648,4175.5,4175.4,0.67170001]
[1758733636554,1.996,4175.6,4175.5,2.39491619]
[1758733636876,4.2519,4175.6,4175.5,11.27547926]
[1758733637078,4.2519,4175.6,4175.5,11.25153004]
[1758733637876,4.2519,4175.6,4175.5,3.06661619]
[1758733638087,4.2519,4175.6,4175.5,3.06662276]
[1758733640016,4.2529,4175.6,4175.5,3.06662276]
[1758733641625,0.001,4175.6,4175.5,3.06662276]
[1758733641805,0.001,4175.6,4175.5,3.09057198]
[1758733641988,0.001,4175.6,4175.5,3.06662276]
[1758733642319,0.001,4175.6,4175.5,3.58356232]
[1758733642621,0.001,4175.6,4175.5,3.06662276]
[1758733644622,0.001,4175.6,4175.5,2.82682276]
[1758733644843,0.001,4175.6,4175.5,2.39492276]
[1758733645004,0.001,4175.6,4175.5,3.09110194]
[1758733645203,0.001,4175.6,4175.5,2.82682276]
[1758733646999,0.001,4175.6,4175.5,12.3222261]
[1758733647203,0.001,4175.6,4175.5,12.29827688]
[1758733648892,0.001,4175.6,4175.5,2.82682276]
[1758733649725,0.001,4175.6,4175.5,17.32682276]
[1758733653550,0.001,4175.6,4175.5,16.89492276]
[1758733653910,0.001,4175.6,4175.5,17.32682276]
[1758733665081,0.001,4175.6,4175.5,16.89492276]
[1758733665496,0.001,4175.6,4175.5,17.36502276]
[1758733667000,0.001,4175.6,4175.5,26.83647688]
[1758733667386,0.001,4175.6,4175.5,30.62847688]
[1758733667593,0.001,4175.6,4175.5,30.74767688]
[1758733672703,0.001,4175.6,4175.5,34.74067688]
[1758733677447,0.001,4175.6,4175.5,34.74267688]
[1758733690458,0.001,4176.1,4176.0,3.18663601]
[1758733690658,0.001,4176.1,4176.0,19.67403649]
[1758733690861,0.001,4176.1,4176.0,20.12069013]
[1758733691058,0.001,4176.1,4176.0,34.62069013]
[1758733696355,0.001,4176.7,4176.6,2.394292]
[1758733696656,0.001,4176.7,4176.6,11.88968904]
[1758733696857,0.4381,4176.7,4176.6,11.86574612]
[1758733697190,0.001,4176.7,4176.6,16.894292]
[1758733697356,0.4381,4176.7,4176.6,14.5]
[1758733697555,0.4381,4176.7,4176.6,16.894292]
[1758733697756,0.4381,4176.7,4176.6,14.5]
[1758733698188,0.4381,4176.7,4176.6,16.894292]
[1758733698366,0.6849,4176.7,4176.6,16.894292]
[1758733699572,0.001,4177.0,4176.9,2.39412004]
[1758733699762,0.001,4177.6,4177.5,2.39377618]
[1758733700000,0.02,4177.9,4177.7,3.18566158]
[1758733700302,0.02,4177.9,4177.7,17.70959819]
[1758733700602,0.2478,4178.7,4178.2,3.18537513]
[1758733700800,0.2478,4178.7,4178.2,12.65682925]
[1758733700964,0.001,4178.7,4178.6,3.18514602]
[1758733701165,0.001,4178.7,4178.6,27.15660014]
[1758733701999,0.001,4178.7,4178.6,30.60200014]
[1758733702204,0.001,4178.7,4178.6,30.83590014]
[1758733702399,0.001,4178.7,4178.6,30.60200014]
[1758733703683,0.001,4178.7,4178.6,30.15660014]
[1758733705013,0.001,4178.7,4178.6,19.89314602]
[1758733705187,0.2478,4178.7,4178.6,29.36460014]
[1758733705705,0.001,4178.7,4178.6,29.36460014]
[1758733706724,0.001,4178.7,4178.6,28.06322891]
[1758733711224,0.001,4178.7,4178.6,29.53452891]
[1758733711520,0.001,4178.7,4178.6,28.85522891]
[1758733712399,0.001,4178.7,4178.6,37.7046118]
[1758733712918,0.001,4178.7,4178.6,29.30062891]
[1758733713714,0.001,4178.7,4178.6,29.53452891]
[1758733714930,0.001,4178.7,4178.6,29.30062891]
[1758733715929,0.001,4179.2,4179.0,0.792]
[1758733716108,0.001,4179.2,4179.1,16.04917118]
[1758733716310,0.001,4179.2,4179.1,16.02524259]
[1758733716509,0.02,4179.9,4179.5,3.18463069]
[1758733716815,0.2468,4180.2,4180.0,2.39234449]
[1758733717131,0.2468,4180.2,4180.0,28.08635082]
[1758733717296,0.2468,4180.2,4180.0,28.06242738]
[1758733717797,0.2478,4180.1,4180.0,28.06242738]
[1758733726106,0.001,4180.1,4180.0,28.06242738]
[1758733727524,0.2395,4180.1,4180.0,28.06242738]
[1758733732737,0.2395,4180.1,4180.0,16.89234449]
[1758733732945,0.695,4180.1,4180.0,16.89234449]
[1758733735614,4.683,4180.1,4180.0,16.89234449]
[1758733736122,0.2395,4180.1,4180.0,16.89234449]
[1758733736329,4.2275,4180.1,4180.0,16.89234449]
[1758733736927,0.2395,4180.1,4180.0,2.39234449]
[1758733737252,0.001,4180.1,4180.0,2.41626793]
[1758733737448,0.001,4180.1,4180.0,16.91626793]
[1758733737645,0.001,4180.1,4180.0,16.89234449]
[1758733737815,0.2395,4180.1,4180.0,16.89234449]
[1758733738753,0.001,4180.1,4180.0,16.89234449]
[1758733739852,0.2431,4180.1,4180.0,16.89234449]
[1758733740149,0.001,4180.1,4180.0,16.89234449]
[1758733740662,0.001,4180.1,4180.0,20.68434449]
[1758733740902,0.001,4180.1,4180.0,25.37284449]
[1758733741354,0.001,4181.1,4180.8,3.18388672]
[1758733741355,1e-08,4180.9,4180.8,3.18388672]
[1758733741560,1e-08,4180.9,4180.8,14.35396961]
[1758733741764,1e-08,4180.9,4180.8,15.05446961]
[1758733742193,1e-08,4180.9,4180.8,21.14668672]
[1758733742330,1e-08,4180.9,4180.8,20.68388672]
[1758733745064,1e-08,4180.9,4180.8,21.14668672]
[1758733745215,1e-08,4180.9,4180.8,20.68388672]
[1758733747470,1e-08,4180.9,4180.8,21.14668672]
[1758733748029,1e-08,4180.9,4180.8,21.38438672]
[1758733751021,0.00100001,4180.9,4180.8,21.38438672]
[1758733751247,1e-08,4181.1,4181.0,3.1837723]
[1758733751426,1e-08,4181.1,4181.0,18.34085519]
[1758733751626,1e-08,4181.1,4181.0,18.80365519]
[1758733751821,1e-08,4181.1,4181.0,33.30365519]
[1758733752633,1e-08,4181.1,4181.0,32.84085519]
[1758733754439,1e-08,4181.1,4181.0,33.30345519]
[1758733754846,1e-08,4181.1,4181.0,25.1333723]
[1758733755165,1e-08,4181.1,4181.0,33.30345519]
[1758733758135,1e-08,4181.1,4181.0,32.84085519]
[1758733758536,1e-08,4181.1,4181.0,33.30345519]
[1758733763250,1e-08,4181.1,4181.0,32.84085519]
[1758733763506,0.23180001,4181.1,4181.0,24.6707723]
[1758733763684,0.70500001,4181.1,4181.0,24.6707723]
[1758733763977,1e-08,4181.1,4181.0,24.6707723]
[1758733764988,1e-08,4181.1,4181.0,25.1333723]
[1758733765690,1e-08,4181.1,4181.0,24.6707723]
[1758733766043,0.23180001,4181.1,4181.0,24.6707723]
[1758733767284,0.23180001,4181.1,4181.0,25.1333723]
[1758733767285,1e-08,4181.1,4181.0,25.1333723]
[1758733767490,1e-08,4181.1,4181.0,25.3774723]
[1758733767812,1e-08,4181.1,4181.0,25.1333723]
[1758733769020,0.001,4181.8,4181.7,2.39137193]
[1758733769176,0.001,4181.8,4181.7,7.16937193]
[1758733769518,0.001,4181.8,4181.7,10.87607193]
[1758733769701,0.001,4181.8,4181.7,25.37607193]
[1758733772521,0.001,4181.8,4181.7,25.13197193]
[1758733774833,0.001,4181.8,4181.7,24.66937193]
[1758733775538,0.4732,4182.2,4182.1,6.1831432]
[1758733776039,0.4732,4182.2,4182.1,3.0]
[1758733776332,0.4732,4182.2,4182.1,19.8911432]
[1758733777033,0.4732,4182.2,4182.1,20.61000481]
[1758733777600,0.705,4182.2,4182.1,20.61000481]
[1758733777816,0.4732,4182.5,4182.2,5.39108603]
[1758733778143,1.992,4183.1,4182.8,2.39074304]
[1758733778439,1.992,4183.1,4182.8,16.89074304]
[1758733779197,0.725,4182.9,4182.8,16.89074304]
[1758733783139,0.2518,4182.9,4182.8,16.89074304]
[1758733783369,0.2326,4183.4,4182.8,16.89074304]
[1758733783574,0.2326,4183.4,4182.9,2.39068588]
[1758733783871,0.4562,4183.5,4183.4,2.39040015]
[1758733784034,0.6888,4183.5,4183.4,2.39040015]
[1758733784757,0.6888,4183.5,4183.4,16.89040015]
[1758733786051,0.02,4183.9,4183.4,16.89040015]
[1758733786274,0.02,4183.9,4183.8,2.39017161]
[1758733786869,0.7088,4183.9,4183.8,16.89017161]
[1758733788583,0.7098,4183.9,4183.8,16.89017161]
[1758733792313,4.6948,4183.9,4183.8,16.89017161]
[1758733793088,0.2536,4183.9,4183.8,16.89017161]
[1758733793361,2.967,4183.9,4183.8,16.89017161]
[1758733793567,3.1996,4183.9,4183.8,16.89017161]
[1758733794268,3.6558,4183.9,4183.8,16.89017161]
[1758733794786,3.1996,4183.9,4183.8,16.89017161]
[1758733795670,3.6558,4183.9,4183.8,16.89017161]
[1758733795871,3.6558,4183.9,4183.8,14.5]
[1758733796100,0.7098,4183.9,4183.8,14.5]
[1758733796408,4.6948,4183.9,4183.8,14.5]
[1758733796570,5.36338,4183.9,4183.8,14.5]
[1758733798323,5.87911926,4183.9,4183.8,14.5]
[1758733800526,1.20613926,4183.9,4183.8,14.5]
[1758733800696,6.6654,4183.9,4183.8,14.5]
[1758733800895,7.18113926,4183.9,4183.8,14.5]
[1758733802898,1.20613926,4183.9,4183.8,16.89017161]
[1758733803099,2.928,4183.9,4183.8,16.89017161]
[1758733803435,4.919,4183.9,4183.8,16.89017161]
[1758733803734,0.53683291,4183.9,4183.8,16.89017161]
[1758733803940,6.2356,4183.9,4183.8,16.89017161]
[1758733804229,7.18123291,4183.9,4183.8,14.5]
[1758733804588,7.18123291,4183.9,4183.8,16.89017161]
[1758733805208,6.75143291,4183.9,4183.8,16.89017161]
[1758733805614,6.51183291,4183.9,4183.8,16.89017161]
[1758733806527,6.75143291,4183.9,4183.8,16.89017161]
[1758733806728,6.51183291,4183.9,4183.8,16.89017161]
[1758733807354,0.021,4183.9,4183.8,17.55617161]
[1758733807904,1.434,4183.9,4183.8,17.55617161]
[1758733808115,0.021,4183.9,4183.8,17.55617161]
[1758733808621,2.008,4183.9,4183.8,17.55617161]
[1758733809129,0.021,4183.9,4183.8,17.55617161]